[Event "Turkish Championship 2020"]
[Site "Kemer-Antalya"]
[Date "2020.11.19"]
[Round "7.1"]
[White "Eren, Ataberk"]
[Black "Atalik, Ekaterina"]
[Result "1/2-1/2"]
[ECO "D03"]
[WhiteElo "2321"]
[BlackElo "2450"]
[Annotator "ChessBase"]
[PlyCount "126"]
[EventDate "2020.11.13"]
[EventType "tourn"]
[EventCountry "TUR"]
[SourceTitle "playchess.com"]
[Source "ChessBase"]
[SourceQuality "1"]
[TimeControl "40/5400+30:1800+30"]

1. d4 {[%emt 0:01:30]} Nf6 {[%emt 0:00:30]} 2. Nf3 {[%emt 0:00:00]} g6 {[%emt 0:00:30]} 3. Bg5 {[%emt 0:00:00]} Bg7 {[%emt 0:00:00]} 4. Nbd2 {[%emt 0:00:00]} d5 {[%emt 0:01:00]} 5. e3 {[%emt 0:00:00]} c5 {[%emt 0:01:30]} 6. c3 {[%emt 0:00:30]} Qb6 {[%emt 0:01:30]} 7. Qb3 {[%emt 0:00:30]} Nc6 {[%emt 0:02:30]} 8. Be2 {[%emt 0:00:00]} c4 {[%emt 0:03:30]} 9. Qa3 {[%emt 0:01:00]} O-O {[%emt 0:01:30]} 10. b3 {[%emt 0:00:30]} cxb3 {[%emt 0:01:30]} 11. axb3 {[%emt 0:00:30]} h6 {[%emt 0:04:30]} 12. Bh4 {[%emt 0:02:30]} g5 {[%emt 0:03:30]} 13. Bg3 {[%emt 0:00:00]} Ne4 {[%emt 0:04:30]} 14. Nxe4 {[%emt 0:01:00]} dxe4 {[%emt 0:00:30]} 15. Nd2 {[%emt 0:00:00]} f5 {[%emt 0:02:30]} 16. b4 {[%emt 0:08:00]} f4 {[%emt 0:17:30]} 17. exf4 {[%emt 0:00:30]} gxf4 {[%emt 0:00:30]} 18. Bh4 {[%emt 0:00:30]} f3 {[%emt 0:03:30]} 19. gxf3 {[%emt 0:41:30]} exf3 {[%emt 0:03:30]} 20. Nxf3 {[%emt 0:08:30]} Bg4 {[%emt 0:03:30]} 21. Qb3+ {[%emt 0:03:30]} Kh8 {[%emt 0:01:30]} 22. Qd1 {[%emt 0:01:30]} Rf4 {[%emt 0:02:30]} 23. Bg3 {[%emt 0:02:30]} Re4 {[%emt 0:01:30]} 24. Ng1 {[%emt 0:01:30]} Nxd4 {[%emt 0:06:30]} 25. cxd4 {[%emt 0:00:30]} Rxd4 {[%emt 0:01:30]} 26. Qc1 {[%emt 0:04:30]} Rc8 {[%emt 0:05:30]} 27. Qa3 {[%emt 0:03:27]} Re4 {[%emt 0:06:30]} 28. Kf1 {[%emt 0:09:17]} Rxe2 {[%emt 0:13:06]} 29. Nxe2 {[%emt 0:00:29]} Bxe2+ {[%emt 0:01:01]} 30. Kxe2 {[%emt 0:00:41]} Qb5+ {[%emt 0:01:54]} 31. Kd2 {[%emt 0:03:58]} Rd8+ {[%emt 0:00:58]} 32. Ke1 {[%emt 0:01:04]} Rd3 {[%emt 0:02:38]} 33. Qa4 {[%emt 0:03:57]} Bc3+ {[%emt 0:02:41]} 34. Kf1 {[%emt 0:00:10]} Rd1+ {[%emt 0:00:50]} 35. Kg2 {[%emt 0:00:04]} Qd5+ {[%emt 0:00:00]} 36. f3 {[%emt 0:01:11]} Rd2+ {[%emt 0:00:23]} 37. Bf2 {[%emt 0:00:03]} Qg5+ {[%emt 0:00:00]} 38. Kf1 {[%emt 0:00:11]} Rxf2+ {[%emt 0:01:23]} 39. Kxf2 {[%emt 0:00:04]} Qd2+ {[%emt 0:00:03]} 40. Kf1 {[%emt 0:00:00]} Qd3+ {[%emt 0:00:00]} 41. Kg2 {[%emt 0:08:54]} Qe2+ {[%emt 0:06:03]} 42. Kg3 {[%emt 0:00:00]} Be5+ {[%emt 0:03:30]} 43. Kg4 {[%emt 0:00:00]} h5+ {[%emt 0:10:30]} 44. Kf5 {[%emt 0:03:30]} e6+ {[%emt 0:00:46]} 45. Kg6 {[%emt 0:04:30]} Qd3+ {[%emt 0:02:26]} 46. Kf7 {[%emt 0:00:00]} Qf5+ {[%emt 0:00:24]} 47. Ke7 {[%emt 0:01:00]} Qf6+ {[%emt 0:02:09]} 48. Kd7 {[%emt 0:00:30]} Qf7+ {[%emt 0:01:00]} 49. Kd8 {[%emt 0:00:00]} Qc7+ {[%emt 0:01:46]} 50. Ke8 {[%emt 0:00:00]} Qb8+ {[%emt 0:01:39]} 51. Kf7 {[%emt 0:05:21]} Qg8+ {[%emt 0:00:38]} 52. Ke7 {[%emt 0:00:06]} Qg7+ {[%emt 0:00:36]} 53. Kxe6 {[%emt 0:00:41]} Qf6+ {[%emt 0:00:05]} 54. Kd7 {[%emt 0:01:45]} Qd6+ {[%emt 0:00:58]} 55. Ke8 {[%emt 0:00:08]} Qe6+ {[%emt 0:00:49]} 56. Kd8 {[%emt 0:00:04]} Qb6+ {[%emt 0:02:33]} 57. Kd7 {[%emt 0:01:21]} Qd6+ {[%emt 0:00:56]} 58. Ke8 {[%emt 0:00:04]} Qe6+ {[%emt 0:00:35]} 59. Kd8 {[%emt 0:00:04]} Bf6+ {[%emt 0:02:13]} 60. Kc7 {[%emt 0:00:05]} Be5+ {[%emt 0:00:19]} 61. Kd8 {[%emt 0:00:20]} Bf6+ {[%emt 0:00:53]} 62. Kc7 {[%emt 0:00:04]} Be5+ {[%emt 0:01:02]} 63. Kd8 {[%emt 0:00:07]} Bf6+ {[%emt 0:00:52]} 1/2-1/2

[Event "Turkish Championship 2020"]
[Site "Kemer-Antalya"]
[Date "2020.11.19"]
[Round "7.2"]
[White "Gokerkan, Cem Kaan"]
[Black "Haznedaroglu, Kivanc"]
[Result "1-0"]
[ECO "B66"]
[WhiteElo "2461"]
[BlackElo "2437"]
[Annotator "ChessBase"]
[PlyCount "55"]
[EventDate "2020.11.13"]
[EventType "tourn"]
[EventCountry "TUR"]
[SourceTitle "playchess.com"]
[Source "ChessBase"]
[SourceQuality "1"]
[TimeControl "40/5400+30:1800+30"]

1. e4 {[%emt 0:01:30]} c5 {[%emt 0:00:30]} 2. Nf3 {[%emt 0:00:30]} d6 {[%emt 0:00:00]} 3. d4 {[%emt 0:00:30]} cxd4 {[%emt 0:00:00]} 4. Nxd4 {[%emt 0:00:30]} Nf6 {[%emt 0:00:30]} 5. Nc3 {[%emt 0:00:00]} Nc6 {[%emt 0:00:00]} 6. Bg5 {[%emt 0:06:00]} e6 {[%emt 0:00:00]} 7. Qd2 {[%emt 0:00:30]} a6 {[%emt 0:00:30]} 8. O-O-O {[%emt 0:01:30]} h6 {[%emt 0:02:30]} 9. Bf4 {[%emt 0:12:30]} Bd7 {[%emt 0:11:30]} 10. Nxc6 {[%emt 0:40:30]} Bxc6 {[%emt 0:03:30]} 11. Bc4 {[%emt 0:04:30]} b5 {[%emt 0:19:30]} 12. Bb3 {[%emt 0:00:30]} e5 {[%emt 0:00:00]} 13. Bg3 {[%emt 0:09:59]} Be7 {[%emt 0:04:00]} 14. Qe2 {[%emt 0:02:07]} Qb8 {[%emt 0:21:30]} 15. Bh4 {[%emt 0:01:37]} g5 {[%emt 0:12:30]} 16. Bg3 {[%emt 0:00:39]} a5 {[%emt 0:00:30]} 17. Bd5 {[%emt 0:01:20]} Nxd5 {[%emt 0:02:30]} 18. Nxd5 {[%emt 0:00:14]} b4 {[%emt 0:02:02]} 19. h4 {[%emt 0:01:30]} a4 {[%emt 0:01:53]} 20. Qc4 {[%emt 0:04:42]} Qb7 {[%emt 0:00:42]} 21. Nxe7 {[%emt 0:00:39]} Kxe7 {[%emt 0:01:41]} 22. Bxe5 {[%emt 0:00:12]} Rhd8 {[%emt 0:02:28]} 23. Bxd6+ {[%emt 0:00:48]} Ke8 {[%emt 0:07:27]} 24. hxg5 {[%emt 0:00:46]} Qb5 {[%emt 0:00:00]} 25. Qxb5 {[%emt 0:00:04]} Bxb5 {[%emt 0:00:06]} 26. gxh6 {[%emt 0:00:30]} f6 {[%emt 0:00:30]} 27. h7 {[%emt 0:00:30]} Kf7 {[%emt 0:00:30]} 28. Bxb4 {[%emt 0:00:30]} 1-0

[Event "Turkish Championship 2020"]
[Site "Kemer-Antalya"]
[Date "2020.11.19"]
[Round "7.3"]
[White "Sevgi, Volkan"]
[Black "Yurtseven, Melih"]
[Result "0-1"]
[ECO "C07"]
[WhiteElo "2359"]
[BlackElo "2391"]
[Annotator "ChessBase"]
[PlyCount "298"]
[EventDate "2020.11.13"]
[EventType "tourn"]
[EventCountry "TUR"]
[SourceTitle "playchess.com"]
[Source "ChessBase"]
[SourceQuality "1"]
[TimeControl "40/5400+30:1800+30"]

1. e4 {[%emt 0:01:30]} e6 {[%emt 0:03:30]} 2. d4 {[%emt 0:00:30]} d5 {[%emt 0:00:30]} 3. Nd2 {[%emt 0:00:30]} c5 {[%emt 0:07:30]} 4. Ngf3 {[%emt 0:00:30]} cxd4 {[%emt 0:00:30]} 5. Nxd4 {[%emt 0:00:00]} Nc6 {[%emt 0:00:30]} 6. Bb5 {[%emt 0:00:00]} Bd7 {[%emt 0:00:30]} 7. Nxc6 {[%emt 0:00:00]} Bxc6 {[%emt 0:00:30]} 8. Bxc6+ {[%emt 0:00:00]} bxc6 {[%emt 0:00:30]} 9. c4 {[%emt 0:00:30]} Nf6 {[%emt 0:00:30]} 10. Qa4 {[%emt 0:01:30]} Qd7 {[%emt 0:00:00]} 11. e5 {[%emt 0:03:30]} Ng8 {[%emt 0:02:00]} 12. O-O {[%emt 0:01:30]} Ne7 {[%emt 0:04:30]} 13. Nf3 {[%emt 0:09:30]} dxc4 {[%emt 0:07:30]} 14. Qxc4 {[%emt 0:04:30]} Nd5 {[%emt 0:05:30]} 15. Be3 {[%emt 0:05:30]} Nxe3 {[%emt 0:12:30]} 16. fxe3 {[%emt 0:00:30]} Be7 {[%emt 0:00:30]} 17. Rad1 {[%emt 0:02:30]} Qb7 {[%emt 0:28:30]} 18. Nd4 {[%emt 0:02:30]} O-O {[%emt 0:01:30]} 19. Qxc6 {[%emt 0:08:30]} Rab8 {[%emt 0:00:30]} 20. Qxb7 {[%emt 0:13:30]} Rxb7 {[%emt 0:01:30]} 21. b3 {[%emt 0:00:30]} Ba3 {[%emt 0:01:30]} 22. Kf2 {[%emt 0:01:30]} h6 {[%emt 0:00:30]} 23. Rd2 {[%emt 0:04:30]} Rc8 {[%emt 0:01:35]} 24. Kf3 {[%emt 0:11:30]} a5 {[%emt 0:06:32]} 25. Rff2 {[%emt 0:01:30]} Rc5 {[%emt 0:05:55]} 26. Ke4 {[%emt 0:02:30]} a4 {[%emt 0:01:01]} 27. Rc2 {[%emt 0:01:30]} axb3 {[%emt 0:02:11]} 28. axb3 {[%emt 0:00:30]} Rd5 {[%emt 0:00:39]} 29. Rc8+ {[%emt 0:01:30]} Kh7 {[%emt 0:01:15]} 30. Rfc2 {[%emt 0:00:30]} Rdd7 {[%emt 0:00:41]} 31. g4 {[%emt 0:01:30]} Be7 {[%emt 0:00:25]} 32. Ra8 {[%emt 0:03:45]} Kg6 {[%emt 0:00:39]} 33. Rc6 {[%emt 0:04:38]} Kh7 {[%emt 0:00:30]} 34. Ra4 {[%emt 0:00:38]} Rb8 {[%emt 0:03:09]} 35. Rcc4 {[%emt 0:03:58]} Rbb7 {[%emt 0:00:07]} 36. b4 {[%emt 0:00:30]} Rd5 {[%emt 0:01:15]} 37. Ra5 {[%emt 0:01:35]} Rdd7 {[%emt 0:00:45]} 38. Nc6 {[%emt 0:01:57]} Bh4 {[%emt 0:00:35]} 39. Rd4 {[%emt 0:01:04]} Rdc7 {[%emt 0:00:32]} 40. Rc5 {[%emt 0:00:00]} Rb6 {[%emt 0:00:00]} 41. Rdc4 {[%emt 0:14:55]} Rcb7 {[%emt 0:02:44]} 42. Na5 {[%emt 0:03:30]} Rb8 {[%emt 0:00:30]} 43. Nc6 {[%emt 0:02:41]} R8b7 {[%emt 0:00:00]} 44. Kd3 {[%emt 0:06:50]} Rd7+ {[%emt 0:16:00]} 45. Rd4 {[%emt 0:04:10]} Rc7 {[%emt 0:01:44]} 46. b5 {[%emt 0:01:59]} Be7 {[%emt 0:01:58]} 47. Kc4 {[%emt 0:00:05]} Bxc5 {[%emt 0:09:49]} 48. Kxc5 {[%emt 0:00:02]} Rbb7 {[%emt 0:00:27]} 49. b6 {[%emt 0:01:01]} Rc8 {[%emt 0:00:03]} 50. Kb5 {[%emt 0:02:37]} Ra8 {[%emt 0:00:32]} 51. Na5 {[%emt 0:00:43]} Re7 {[%emt 0:00:04]} 52. Rb4 {[%emt 0:00:44]} Rd7 {[%emt 0:01:10]} 53. b7 {[%emt 0:02:12]} Rd5+ {[%emt 0:00:30]} 54. Kc4 {[%emt 0:02:10]} Rdxa5 {[%emt 0:00:02]} 55. bxa8=Q {[%emt 0:00:17]} Rxa8 {[%emt 0:00:01]} 56. Kd3 {[%emt 0:00:26]} g5 {[%emt 0:01:25]} 57. Rb2 {[%emt 0:00:32]} Ra4 {[%emt 0:00:52]} 58. Rf2 {[%emt 0:00:31]} Kg6 {[%emt 0:00:37]} 59. h3 {[%emt 0:00:27]} Rb4 {[%emt 0:01:18]} 60. Rf6+ {[%emt 0:00:41]} Kg7 {[%emt 0:00:02]} 61. Rf3 {[%emt 0:00:16]} Ra4 {[%emt 0:00:09]} 62. Rf2 {[%emt 0:00:16]} h5 {[%emt 0:00:57]} 63. gxh5 {[%emt 0:00:36]} Rh4 {[%emt 0:00:07]} 64. Rg2 {[%emt 0:00:51]} Rxh5 {[%emt 0:00:02]} 65. h4 {[%emt 0:00:00]} Kg6 {[%emt 0:00:18]} 66. hxg5 {[%emt 0:00:40]} Rxg5 {[%emt 0:00:02]} 67. Ra2 {[%emt 0:00:02]} Rxe5 {[%emt 0:00:35]} 68. Ra8 {[%emt 0:00:14]} Rb5 {[%emt 0:00:00]} 69. Ke4 {[%emt 0:00:42]} Kf6 {[%emt 0:00:00]} 70. Ra4 {[%emt 0:00:09]} Rh5 {[%emt 0:00:54]} 71. Kf3 {[%emt 0:00:18]} Rf5+ {[%emt 0:00:07]} 72. Ke2 {[%emt 0:00:10]} Kg5 {[%emt 0:00:25]} 73. Ra8 {[%emt 0:00:04]} Rb5 {[%emt 0:00:52]} 74. Kf3 {[%emt 0:00:08]} f6 {[%emt 0:02:32]} 75. Rg8+ {[%emt 0:00:51]} Kf5 {[%emt 0:00:18]} 76. Ra8 {[%emt 0:00:43]} e5 {[%emt 0:00:36]} 77. Ra4 {[%emt 0:00:51]} Rc5 {[%emt 0:00:09]} 78. Rb4 {[%emt 0:00:13]} Ra5 {[%emt 0:00:01]} 79. Rc4 {[%emt 0:00:07]} Ra1 {[%emt 0:01:18]} 80. Kg3 {[%emt 0:01:08]} Re1 {[%emt 0:00:56]} 81. Kf2 {[%emt 0:00:04]} Rh1 {[%emt 0:00:58]} 82. Kg2 {[%emt 0:00:01]} Rh8 {[%emt 0:00:00]} 83. Kg3 {[%emt 0:00:07]} Re8 {[%emt 0:00:21]} 84. Ra4 {[%emt 0:00:43]} Re7 {[%emt 0:00:11]} 85. Rb4 {[%emt 0:00:07]} Rc7 {[%emt 0:00:38]} 86. Ra4 {[%emt 0:00:08]} Rc6 {[%emt 0:00:05]} 87. Kf3 {[%emt 0:00:12]} Rc1 {[%emt 0:01:04]} 88. Kg3 {[%emt 0:00:31]} Rc3 {[%emt 0:00:48]} 89. Kf3 {[%emt 0:00:05]} Rb3 {[%emt 0:00:14]} 90. Rc4 {[%emt 0:00:06]} Rb6 {[%emt 0:00:30]} 91. Ra4 {[%emt 0:00:08]} Ke6 {[%emt 0:00:08]} 92. Ra8 {[%emt 0:00:05]} Rb4 {[%emt 0:00:48]} 93. Ra6+ {[%emt 0:01:17]} Kf7 {[%emt 0:00:16]} 94. Ra7+ {[%emt 0:00:42]} Kg6 {[%emt 0:00:02]} 95. Ra5 {[%emt 0:01:27]} Kg5 {[%emt 0:01:10]} 96. Rc5 {[%emt 0:00:10]} Rb1 {[%emt 0:00:32]} 97. Ra5 {[%emt 0:00:53]} Rf1+ {[%emt 0:00:10]} 98. Kg2 {[%emt 0:00:21]} Rf5 {[%emt 0:00:12]} 99. Ra4 {[%emt 0:00:04]} Kg6 {[%emt 0:00:14]} 100. Ra7 {[%emt 0:01:06]} Rh5 {[%emt 0:00:54]} 101. Ra4 {[%emt 0:00:28]} Rh8 {[%emt 0:01:01]} 102. Rb4 {[%emt 0:00:48]} f5 {[%emt 0:01:13]} 103. Rb5 {[%emt 0:02:56]} Kf6 {[%emt 0:00:11]} 104. Ra5 {[%emt 0:00:15]} Rb8 {[%emt 0:00:16]} 105. Ra3 {[%emt 0:01:26]} Kg5 {[%emt 0:00:43]} 106. Kg3 {[%emt 0:00:24]} Rb2 {[%emt 0:00:28]} 107. Ra8 {[%emt 0:00:19]} Rb3 {[%emt 0:00:27]} 108. Rg8+ {[%emt 0:00:18]} Kf6 {[%emt 0:00:09]} 109. Kf2 {[%emt 0:00:13]} Rb2+ {[%emt 0:00:56]} 110. Kg3 {[%emt 0:00:09]} Rb3 {[%emt 0:00:49]} 111. Kf2 {[%emt 0:00:01]} Ke6 {[%emt 0:00:23]} 112. Rd8 {[%emt 0:01:02]} Rb2+ {[%emt 0:00:32]} 113. Kg3 {[%emt 0:00:09]} Ra2 {[%emt 0:00:42]} 114. Rb8 {[%emt 0:02:14]} Kd5 {[%emt 0:00:17]} 115. Rb4 {[%emt 0:00:20]} Ra3 {[%emt 0:00:28]} 116. Kf2 {[%emt 0:00:11]} Ra2+ {[%emt 0:00:02]} 117. Kg3 {[%emt 0:00:08]} Kc5 {[%emt 0:00:35]} 118. Rb8 {[%emt 0:00:52]} Ra3 {[%emt 0:00:18]} 119. Kf2 {[%emt 0:00:06]} Kc4 {[%emt 0:00:35]} 120. Rd8 {[%emt 0:00:25]} Rd3 {[%emt 0:01:14]} 121. Rf8 {[%emt 0:01:25]} Rd2+ {[%emt 0:00:31]} 122. Ke1 {[%emt 0:00:26]} Ra2 {[%emt 0:00:25]} 123. Rd8 {[%emt 0:00:33]} Rb2 {[%emt 0:00:14]} 124. Rd7 {[%emt 0:00:14]} Ra2 {[%emt 0:00:25]} 125. Rd8 {[%emt 0:00:03]} Rh2 {[%emt 0:00:42]} 126. Rd7 {[%emt 0:00:25]} Rh8 {[%emt 0:01:06]} 127. Ke2 {[%emt 0:00:30]} Rh2+ {[%emt 0:00:30]} 128. Ke1 {[%emt 0:00:00]} Kc5 {[%emt 0:00:00]} 129. Rd8 {[%emt 0:00:00]} Ra2 {[%emt 0:00:00]} 130. Kf1 {[%emt 0:00:00]} Kc6 {[%emt 0:00:42]} 131. Ke1 {[%emt 0:00:06]} Kc5 {[%emt 0:00:35]} 132. Kf1 {[%emt 0:00:02]} Ra6 {[%emt 0:00:13]} 133. Ke2 {[%emt 0:00:07]} Ra1 {[%emt 0:00:35]} 134. Kf2 {[%emt 0:00:14]} Kc4 {[%emt 0:00:09]} 135. Ke2 {[%emt 0:00:23]} Ra2+ {[%emt 0:00:10]} 136. Ke1 {[%emt 0:00:21]} e4 {[%emt 0:00:54]} 137. Rd7 {[%emt 0:00:10]} Ra5 {[%emt 0:00:38]} 138. Ke2 {[%emt 0:00:04]} Rd5 {[%emt 0:00:22]} 139. Rc7+ {[%emt 0:00:32]} Kb5 {[%emt 0:00:24]} 140. Rc8 {[%emt 0:01:05]} Rc5 {[%emt 0:00:06]} 141. Rd8 {[%emt 0:00:50]} Kc6 {[%emt 0:00:02]} 142. Rd2 {[%emt 0:00:42]} Rd5 {[%emt 0:00:13]} 143. Rxd5 {[%emt 0:02:30]} Kxd5 {[%emt 0:00:14]} 144. Kd2 {[%emt 0:00:01]} Kd6 {[%emt 0:00:17]} 145. Kc2 {[%emt 0:00:23]} Kc6 {[%emt 0:00:32]} 146. Kb3 Kd5 {[%emt 0:01:25]} 147. Kc3 {[%emt 0:01:22]} Ke5 {[%emt 0:00:02]} 148. Kd2 {[%emt 0:00:42]} Kf6 {[%emt 0:00:01]} 149. Ke2 {[%emt 0:00:17]} Ke5 {[%emt 0:00:30]} 0-1

[Event "Turkish Championship 2020"]
[Site "Kemer-Antalya"]
[Date "2020.11.19"]
[Round "7.4"]
[White "Tarlabasi, Emirhan"]
[Black "Sanal, Vahap"]
[Result "1/2-1/2"]
[ECO "E17"]
[WhiteElo "2275"]
[BlackElo "2557"]
[Annotator "ChessBase"]
[PlyCount "78"]
[EventDate "2020.11.13"]
[EventType "tourn"]
[EventCountry "TUR"]
[SourceTitle "playchess.com"]
[Source "ChessBase"]
[SourceQuality "1"]
[TimeControl "40/5400+30:1800+30"]

1. d4 {[%emt 0:00:30]} Nf6 {[%emt 0:00:30]} 2. c4 {[%emt 0:00:30]} e6 {[%emt 0:00:30]} 3. Nf3 {[%emt 0:00:30]} b6 {[%emt 0:00:30]} 4. g3 {[%emt 0:02:30]} Bb7 {[%emt 0:00:30]} 5. Bg2 {[%emt 0:00:30]} Be7 {[%emt 0:00:30]} 6. O-O {[%emt 0:00:30]} O-O {[%emt 0:00:00]} 7. d5 {[%emt 0:00:30]} Na6 {[%emt 0:01:00]} 8. Nc3 {[%emt 0:02:30]} Bb4 {[%emt 0:00:30]} 9. Nh4 {[%emt 0:08:30]} Bxc3 {[%emt 0:01:30]} 10. bxc3 {[%emt 0:00:30]} Nc5 {[%emt 0:00:00]} 11. Ba3 {[%emt 0:04:30]} Rb8 {[%emt 0:01:00]} 12. Bxc5 {[%emt 0:10:30]} bxc5 {[%emt 0:00:30]} 13. Rb1 {[%emt 0:01:30]} exd5 {[%emt 0:18:30]} 14. cxd5 {[%emt 0:03:30]} Ba6 {[%emt 0:00:30]} 15. Qc2 {[%emt 0:03:30]} Bc4 {[%emt 0:07:30]} 16. Rxb8 {[%emt 0:07:30]} Qxb8 {[%emt 0:01:30]} 17. Rd1 {[%emt 0:09:30]} Re8 {[%emt 0:07:30]} 18. e4 {[%emt 0:04:30]} g6 {[%emt 0:02:30]} 19. Bf3 {[%emt 0:04:30]} d6 {[%emt 0:13:30]} 20. Ng2 {[%emt 0:04:30]} Qb5 {[%emt 0:03:30]} 21. Ne3 {[%emt 0:02:30]} Qa6 {[%emt 0:05:30]} 22. Bg2 {[%emt 0:04:30]} Rb8 {[%emt 0:02:30]} 23. Rd2 {[%emt 0:03:50]} Qb5 {[%emt 0:03:30]} 24. f3 {[%emt 0:05:01]} Qb1+ {[%emt 0:01:30]} 25. Kf2 {[%emt 0:02:49]} Qxc2 {[%emt 0:00:30]} 26. Rxc2 {[%emt 0:00:24]} Bd3 {[%emt 0:00:30]} 27. Rd2 {[%emt 0:00:57]} c4 {[%emt 0:00:30]} 28. Bf1 {[%emt 0:03:08]} Rb1 {[%emt 0:00:30]} 29. Bxd3 {[%emt 0:01:36]} cxd3 {[%emt 0:00:30]} 30. Nd1 {[%emt 0:00:20]} Nd7 {[%emt 0:09:29]} 31. Rxd3 {[%emt 0:01:43]} a5 {[%emt 0:00:09]} 32. Ke2 {[%emt 0:03:30]} a4 {[%emt 0:06:48]} 33. c4 {[%emt 0:02:02]} Nc5 {[%emt 0:00:43]} 34. Ra3 {[%emt 0:00:55]} Rb4 {[%emt 0:01:25]} 35. Rc3 {[%emt 0:00:41]} Kg7 {[%emt 0:00:11]} 36. Kd2 {[%emt 0:01:16]} Nd7 {[%emt 0:01:54]} 37. a3 {[%emt 0:01:06]} Rb8 {[%emt 0:00:47]} 38. Kc2 {[%emt 0:00:18]} Nc5 {[%emt 0:01:27]} 39. Nb2 {[%emt 0:00:19]} Kf6 {[%emt 0:01:05]} 1/2-1/2

[Event "Turkish Championship 2020"]
[Site "Kemer-Antalya"]
[Date "2020.11.19"]
[Round "7.5"]
[White "Firat, Burak"]
[Black "Ozen, Deniz"]
[Result "1-0"]
[ECO "D12"]
[WhiteElo "2474"]
[BlackElo "2412"]
[Annotator "ChessBase"]
[PlyCount "103"]
[EventDate "2020.11.13"]
[EventType "tourn"]
[EventCountry "TUR"]
[SourceTitle "playchess.com"]
[Source "ChessBase"]
[SourceQuality "1"]
[TimeControl "40/5400+30:1800+30"]

1. Nf3 {[%emt 0:01:30]} d5 {[%emt 0:01:30]} 2. c4 {[%emt 0:00:30]} c6 {[%emt 0:01:30]} 3. e3 {[%emt 0:01:30]} Nf6 {[%emt 0:00:30]} 4. d4 {[%emt 0:02:30]} Bf5 {[%emt 0:00:30]} 5. Nc3 {[%emt 0:01:30]} e6 {[%emt 0:00:30]} 6. Nh4 {[%emt 0:02:30]} Be4 {[%emt 0:00:00]} 7. f3 {[%emt 0:00:30]} Bg6 {[%emt 0:00:00]} 8. Bd2 {[%emt 0:00:00]} Nbd7 {[%emt 0:20:30]} 9. Nxg6 {[%emt 0:13:00]} hxg6 {[%emt 0:00:30]} 10. Qc2 {[%emt 0:00:30]} Nh5 {[%emt 0:04:30]} 11. Bd3 {[%emt 0:21:30]} dxc4 {[%emt 0:09:30]} 12. Bxc4 {[%emt 0:00:30]} Qh4+ {[%emt 0:09:30]} 13. Ke2 {[%emt 0:02:30]} O-O-O {[%emt 0:14:30]} 14. Ne4 {[%emt 0:17:30]} f5 {[%emt 0:05:30]} 15. Nf2 {[%emt 0:05:30]} e5 {[%emt 0:04:30]} 16. Ba5 {[%emt 0:08:26]} exd4 {[%emt 0:09:04]} 17. Bxd8 {[%emt 0:01:01]} Qxd8 {[%emt 0:00:43]} 18. exd4 {[%emt 0:01:09]} Bd6 {[%emt 0:00:07]} 19. Rad1 {[%emt 0:04:23]} Bxh2 {[%emt 0:01:22]} 20. Kd2 {[%emt 0:03:34]} Bf4+ {[%emt 0:02:22]} 21. Kc3 {[%emt 0:01:12]} c5 {[%emt 0:04:11]} 22. a3 {[%emt 0:03:32]} b5 {[%emt 0:02:20]} 23. dxc5 {[%emt 0:00:44]} bxc4 {[%emt 0:02:21]} 24. Qa4 {[%emt 0:00:20]} Qc7 {[%emt 0:01:46]} 25. Qa6+ {[%emt 0:01:04]} Kb8 {[%emt 0:00:08]} 26. Qb5+ {[%emt 0:00:51]} Kc8 {[%emt 0:00:30]} 27. Qa6+ {[%emt 0:00:30]} Kb8 {[%emt 0:00:00]} 28. Qb5+ {[%emt 0:00:32]} Kc8 {[%emt 0:00:00]} 29. Kxc4 {[%emt 0:00:20]} Ne5+ {[%emt 0:03:45]} 30. Kb3 {[%emt 0:00:54]} Qf7+ {[%emt 0:01:13]} 31. Kc3 {[%emt 0:01:31]} Be3 {[%emt 0:00:54]} 32. Nd3 {[%emt 0:01:52]} Qf6 {[%emt 0:00:32]} 33. Nxe5 {[%emt 0:00:46]} Qxe5+ {[%emt 0:00:30]} 34. Kc2 {[%emt 0:00:00]} f4 {[%emt 0:00:30]} 35. Qc6+ {[%emt 0:00:08]} Kb8 {[%emt 0:00:01]} 36. Qb5+ {[%emt 0:01:06]} Ka8 {[%emt 0:00:30]} 37. Qc6+ {[%emt 0:00:31]} Kb8 {[%emt 0:00:00]} 38. Rd5 {[%emt 0:00:00]} Qf6 {[%emt 0:00:13]} 39. Qxf6 {[%emt 0:00:25]} gxf6 {[%emt 0:00:03]} 40. b4 {[%emt 0:00:00]} Re8 {[%emt 0:00:00]} 41. Rd7 {[%emt 0:06:09]} Re5 {[%emt 0:09:55]} 42. Rhd1 {[%emt 0:00:30]} Bxc5 {[%emt 0:06:01]} 43. bxc5 {[%emt 0:00:30]} Rxc5+ {[%emt 0:00:06]} 44. Kb3 {[%emt 0:00:00]} Rc7 {[%emt 0:01:19]} 45. R1d6 {[%emt 0:04:00]} g5 {[%emt 0:07:49]} 46. Rxc7 {[%emt 0:03:30]} Kxc7 {[%emt 0:00:30]} 47. Ra6 {[%emt 0:00:30]} Kb7 {[%emt 0:01:20]} 48. Re6 {[%emt 0:00:00]} Kc7 {[%emt 0:01:28]} 49. Kc4 {[%emt 0:00:00]} Ng3 {[%emt 0:00:15]} 50. Rxf6 {[%emt 0:00:30]} Nf1 {[%emt 0:00:04]} 51. Kd3 {[%emt 0:00:30]} Ne3 {[%emt 0:01:22]} 52. g4 {[%emt 0:00:30]} 1-0